bitfinex/quotes_SOLUSD_20251025
["timestamp","ask_amount","ask_price","bid_price","bid_amount"]
[1761408913512,15.65394348,191.78,191.76,5.82485189]
[1761408913712,15.65394348,191.78,191.76,5.21485189]
[1761408913907,15.65394348,191.78,191.76,5.82485189]
[1761408914429,15.65394348,191.78,191.76,5.21485189]
[1761408915231,15.65394348,191.78,191.77,36.46]
[1761408915417,0.69,191.77,191.74,5.2151903]
[1761408915619,1.98992948,191.76,191.74,5.2151903]
[1761408916037,15.65394348,191.75,191.74,5.2151903]
[1761408916329,1.98992948,191.76,191.74,5.2151903]
[1761408916714,17.64550677,191.76,191.74,5.2151903]
[1761408917311,18.33550677,191.76,191.74,5.2151903]
[1761408917815,22.88,191.78,191.75,37.05]
[1761408918134,15.65476035,191.77,191.75,37.05]
[1761408918314,15.65476035,191.77,191.75,36.44]
[1761408920229,15.65476035,191.77,191.76,5.21485189]
[1761408925740,0.7,191.77,191.76,5.21485189]
[1761408931033,15.65476035,191.78,191.76,5.21485189]
[1761408931241,16.35476035,191.78,191.76,5.21485189]
[1761408932021,15.65476035,191.78,191.77,36.42]
[1761408932220,0.7,191.8,191.77,36.42]
[1761408932524,16.35476035,191.8,191.77,36.42]
[1761408933040,0.7,191.79,191.77,36.42]
[1761408933239,0.7,191.79,191.78,5.82430806]
[1761408933240,15.65476035,191.79,191.78,5.82430806]
[1761408933439,0.7,191.83,191.78,18.86007821]
[1761408933649,0.7,191.83,191.79,37.03]
[1761408933940,0.7,191.84,191.79,37.03]
[1761408934140,0.7,191.84,191.8,0.61]
[1761408934342,0.7,191.84,191.81,36.42]
[1761408934540,16.34986045,191.85,191.81,36.42]
[1761408934755,15.64986045,191.85,191.81,36.42]
[1761408934945,0.7,191.84,191.81,36.42]
[1761408935144,0.7,191.84,191.83,5.21294896]
[1761408935746,0.7,191.84,191.83,41.63294896]
[1761408936745,16.34986045,191.85,191.83,41.63294896]
[1761408936949,0.7,191.85,191.83,41.63294896]
[1761408941346,39.2290441,191.86,191.83,41.63294896]
[1761408941553,41.21897358,191.86,191.83,41.63294896]
[1761408941752,41.21897358,191.86,191.83,57.28199306]
[1761408942057,23.58,191.86,191.83,70.31436547]
[1761408942426,23.58,191.86,191.83,54.66532137]
[1761408942621,23.58,191.86,191.84,15.64741165]
[1761408942856,23.58,191.86,191.85,36.4]
[1761408943058,17.63734113,191.87,191.85,36.4]
[1761408943059,1.98992948,191.87,191.85,36.4]
[1761408943352,1.98992948,191.87,191.86,5.21213384]
[1761408944337,1.98992948,191.87,191.86,41.61213384]
[1761408944545,2.68992948,191.87,191.86,41.61213384]
[1761408945236,1.98992948,191.87,191.86,41.61213384]
[1761408945631,2.68992948,191.87,191.86,36.4]
[1761408950462,2.68992948,191.87,191.86,41.61213384]
[1761408950856,0.7,191.87,191.86,41.61213384]
[1761408951157,2.68992948,191.87,191.86,41.61213384]
[1761408951762,25.56992948,191.87,191.86,41.61213384]
[1761408951951,41.21734113,191.87,191.86,41.61213384]
[1761408955759,40.51734113,191.87,191.86,41.61213384]
[1761408955941,24.86992948,191.87,191.86,41.61213384]
[1761408956341,25.51992948,191.87,191.86,41.61213384]
[1761408956754,24.15214296,191.87,191.86,41.61213384]
[1761408958057,24.15214296,191.87,191.78,27.79439772]
[1761408958058,1.92214296,191.87,191.79,44.31930756]
[1761408958262,1.92214296,191.87,191.82,0.61]
[1761408958462,1.92214296,191.87,191.83,36.38]
[1761408959161,1.92214296,191.87,191.84,5.21267723]
[1761408959352,1.92214296,191.87,191.85,36.38]
[1761408960659,1.92214296,191.87,191.85,41.59214004]
[1761408960866,1.27214296,191.87,191.85,42.20214004]
[1761408962073,1.93214296,191.87,191.85,41.59214004]
[1761408962466,0.66,191.86,191.85,41.59214004]
[1761408964548,0.66,191.86,191.83,18.24529173]
[1761408964754,0.66,191.86,191.84,36.36]
[1761408966375,1.93214296,191.86,191.84,41.57243398]
[1761408966595,1.93214296,191.86,191.84,5.21243398]
[1761408966866,1.93214296,191.86,191.8,13.03409285]
[1761408966867,0.66,191.85,191.83,36.36]
[1761408967071,1.27214296,191.84,191.83,36.36]
[1761408968065,0.66,191.84,191.76,5.21483908]
[1761408968268,1.27214296,191.79,191.77,36.36]
[1761408968778,1.93214296,191.81,191.77,42.18455446]
[1761408969169,1.93214296,191.81,191.77,41.57455446]
[1761408969376,0.66,191.8,191.77,41.57455446]
[1761408980366,22.88,191.82,191.77,54.61100437]
[1761408980572,24.15214296,191.82,191.77,54.61100437]
[1761408980867,0.7,191.81,191.78,0.61]
[1761408981076,0.7,191.81,191.79,36.36]
[1761408982585,24.15214296,191.82,191.79,41.57388474]
[1761408982788,24.85214296,191.82,191.79,41.57388474]
[1761408983484,24.15214296,191.82,191.79,41.57388474]
[1761408983785,0.7,191.81,191.79,41.57388474]
[1761408986590,0.7,191.81,191.79,5.21388474]
[1761408986986,1.27214296,191.8,191.78,36.34]
[1761408987188,0.7,191.79,191.78,36.34]
[1761408988391,0.7,191.79,191.78,41.55425262]
[1761408994805,1.27214296,191.8,191.78,41.55425262]
[1761408995197,0.7,191.79,191.78,41.55425262]
[1761408995782,23.58,191.81,191.78,41.55425262]
[1761408996092,24.15214296,191.81,191.78,41.55425262]
[1761408996303,0.7,191.8,191.78,41.55425262]
[1761409006103,1.27214296,191.79,191.74,5.21539584]
[1761409006305,1.27214296,191.77,191.74,5.21539584]
[1761409006808,0.7,191.76,191.74,5.21539584]
[1761409011106,23.57,191.78,191.75,0.61]
[1761409011291,23.57,191.78,191.75,36.32]
[1761409012320,0.69,191.78,191.76,5.21485189]
[1761409014413,23.57,191.78,191.76,5.21485189]
[1761409016613,0.69,191.78,191.76,5.21485189]
[1761409016910,23.57,191.78,191.76,5.21485189]
[1761409017917,1.27214296,191.79,191.74,5.21520271]
[1761409018096,24.84214296,191.77,191.74,5.21520271]
[1761409018416,0.69,191.76,191.74,5.21520271]
[1761409018618,23.57,191.76,191.74,5.21520271]
[1761409018815,25.56016734,191.76,191.74,5.21520271]
[1761409019122,0.69,191.75,191.74,5.21520271]
[1761409020307,0.69,191.75,191.72,5.21572866]
[1761409020512,22.88,191.73,191.7,36.32]
[1761409021011,0.68,191.72,191.7,36.32]
[1761409021195,0.68,191.72,191.7,41.53648408]
[1761409021398,0.68,191.72,191.69,15.35231653]
[1761409024723,12.41975985,191.74,191.69,15.35231653]
[1761409024724,0.68,191.75,191.7,36.93]
[1761409024894,0.68,191.74,191.7,36.32]
[1761409025528,0.68,191.74,191.71,5.21621198]
[1761409026426,23.56,191.74,191.71,5.21621198]
[1761409027021,0.68,191.73,191.71,5.21621198]
[1761409029820,0.68,191.76,191.72,36.93]
[1761409030014,10.87647521,191.82,191.72,36.93]
[1761409030322,0.68,191.76,191.72,51.97639433]
[1761409031030,0.68,191.76,191.73,5.21566786]
[1761409034027,0.68,191.76,191.73,20.87206219]
[1761409034739,0.68,191.76,191.73,5.21566786]
[1761409035034,0.68,191.76,191.73,20.87206219]
[1761409035422,0.68,191.76,191.73,5.21566786]
[1761409037040,23.56,191.76,191.73,5.21566786]
[1761409037243,23.56,191.76,191.74,36.32]
[1761409037551,0.68,191.75,191.74,36.32]
[1761409038138,0.68,191.75,191.74,41.53539584]
[1761409039660,0.68,191.75,191.74,36.3]
[1761409039956,23.56,191.77,191.74,36.3]
[1761409040158,22.88,191.77,191.74,36.3]
[1761409040460,23.59,191.77,191.74,36.3]
[1761409040661,0.71,191.76,191.74,36.3]
[1761409041043,0.71,191.76,191.75,5.21512385]
[1761409041362,0.71,191.76,191.74,5.21537127]
[1761409041584,0.71,191.76,191.74,41.51537127]
[1761409044174,0.71,191.77,191.74,41.51537127]
[1761409051269,0.71,191.77,191.74,5.21537127]
[1761409051475,0.71,191.77,191.74,41.51537127]
[1761409051660,0.71,191.77,191.74,5.21537127]
[1761409052052,0.71,191.77,191.74,41.51537127]
[1761409053781,0.71,191.77,191.74,5.21537127]
[1761409053962,0.71,191.77,191.74,41.51537127]
[1761409055053,0.71,191.77,191.74,5.21537127]
[1761409055261,0.71,191.77,191.74,41.51537127]
[1761409056079,0.71,191.77,191.74,5.21537127]
[1761409056276,0.71,191.77,191.74,41.51537127]
[1761409056455,0.71,191.77,191.74,41.49537127]
[1761409057467,0.71,191.82,191.76,1.99016734]
[1761409057670,0.71,191.82,191.78,1.99016734]
[1761409058062,0.71,191.82,191.77,38.88016734]
[1761409058282,0.71,191.82,191.78,10.87647521]
[1761409058683,0.71,191.82,191.79,5.21403618]
[1761409059186,23.59,191.82,191.79,5.21403618]
[1761409059684,0.71,191.81,191.79,5.21403618]
[1761409060178,22.88,191.82,191.79,5.21403618]
[1761409060381,0.71,191.83,191.79,5.82403618]
[1761409061085,0.71,191.83,191.79,21.47552959]
[1761409061280,0.71,191.83,191.8,36.28]
[1761409062784,0.71,191.83,191.8,41.49367938]
[1761409063986,0.71,191.83,191.8,42.10367938]
[1761409064178,0.71,191.83,191.8,41.49367938]
[1761409073705,0.67,191.86,191.81,0.61]
[1761409073898,0.67,191.86,191.82,36.26]
[1761409074606,0.67,191.86,191.82,51.9090441]
[1761409075618,0.67,191.86,191.82,57.12216872]
[1761409076987,0.67,191.86,191.82,41.47312462]
[1761409077809,0.67,191.86,191.82,42.08312462]
[1761409080216,0.67,191.86,191.82,41.47312462]
[1761409080392,0.67,191.86,191.82,42.08312462]
[1761409081702,5.88214296,191.86,191.82,42.08312462]
[1761409081905,22.88,191.83,191.82,42.08312462]
[1761409082685,22.88,191.83,191.82,36.87]
[1761409083805,22.88,191.83,191.82,42.08322072]
[1761409085109,0.72,191.86,191.82,42.08322072]
[1761409085407,22.88,191.84,191.82,42.08322072]
[1761409086108,13.02762211,191.9,191.82,42.08322072]
[1761409086109,7.2038725,191.88,191.83,0.61]
[1761409086300,1.99225173,191.88,191.84,36.26]
[1761409086609,0.72,191.88,191.84,36.26]
[1761409086812,0.72,191.87,191.84,36.26]
[1761409087005,23.6,191.87,191.84,36.26]
[1761409087192,0.92,191.89,191.85,0.61]
[1761409087513,22.88,191.87,191.84,42.08245129]
[1761409087808,0.72,191.88,191.84,42.08245129]
[1761409090415,22.88,191.87,191.84,41.47245129]
[1761409091510,23.6,191.87,191.84,41.47245129]
[1761409093218,0.72,191.87,191.84,41.47245129]
[1761409093600,23.6,191.87,191.84,41.47245129]
[1761409093913,22.88,191.87,191.84,42.08245129]
[1761409094421,23.6,191.87,191.84,42.08245129]
[1761409094826,22.88,191.87,191.84,42.08245129]
[1761409095334,22.88,191.87,191.85,5.82215384]
[1761409095498,0.2,191.89,191.85,5.82215384]
[1761409095699,0.92,191.89,191.85,5.82215384]
[1761409096725,22.88,191.88,191.85,5.82215384]
[1761409097128,22.88,191.88,191.85,5.21215384]
[1761409097720,0.72,191.87,191.85,5.21215384]
[1761409104906,22.88,191.88,191.85,5.21215384]
[1761409104907,23.55,191.88,191.85,5.21215384]
[1761409105333,22.88,191.88,191.86,5.8219941]
[1761409105903,0.2,191.89,191.86,5.2119941]
[1761409106109,0.2,191.89,191.87,36.85]
[1761409107134,0.2,191.89,191.87,36.24]
[1761409107464,0.2,191.89,191.88,5.21159057]
[1761409126967,0.87,191.89,191.88,5.21159057]
[1761409129646,0.2,191.89,191.88,5.21159057]
[1761409130843,0.87,191.89,191.88,5.21159057]
[1761409131053,0.87,191.89,191.87,41.45183402]
[1761409131247,0.67,191.88,191.87,41.45183402]
[1761409131766,0.87,191.89,191.87,41.45183402]
[1761409134666,0.87,191.89,191.86,13.03033461]
[1761409134667,0.67,191.88,191.86,36.2]
[1761409137174,0.67,191.88,191.87,5.21186219]
[1761409137967,0.2,191.89,191.87,5.21186219]
[1761409138152,0.87,191.89,191.87,5.21186219]
[1761409141667,0.88,191.89,191.88,36.2]
[1761409143867,0.88,191.89,191.88,41.41159057]
[1761409148277,28.97134954,191.89,191.83,5.21294896]
[1761409148458,1.98714327,191.84,191.83,5.21294896]
[1761409148660,2.66714327,191.84,191.83,5.21294896]
[1761409149475,16.3290441,191.87,191.83,5.82294896]
[1761409149684,0.68,191.87,191.84,36.18]
[1761409149857,23.56,191.87,191.84,36.18]
[1761409150385,0.68,191.86,191.84,36.18]
[1761409152969,22.88,191.87,191.85,5.21240552]
[1761409153167,23.56,191.87,191.85,5.21240552]
[1761409155887,23.56,191.87,191.86,36.18]
[1761409156389,22.88,191.87,191.86,36.18]
[1761409156765,23.56,191.87,191.86,36.18]
[1761409163593,23.56,191.87,191.83,5.21287738]
[1761409163764,23.56,191.87,191.82,44.62956918]
[1761409163765,1.98714327,191.85,191.82,49.84272281]
[1761409164167,0.71,191.84,191.82,49.84272281]
[1761409165685,0.71,191.84,191.82,44.62956918]
[1761409166390,0.71,191.84,191.82,49.84273029]
[1761409166995,1.98714327,191.83,191.76,13.64666387]
[1761409167191,1.98714327,191.83,191.77,41.39457996]
[1761409167393,0.71,191.82,191.77,41.39457996]
[1761409169596,2.69714327,191.82,191.77,54.43102987]
[1761409169786,2.69714327,191.82,191.77,55.04102987]
[1761409169975,0.71,191.81,191.77,55.04102987]
[1761409172508,0.71,191.83,191.78,0.61]
[1761409172801,0.71,191.83,191.79,36.18]
[1761409173175,0.71,191.83,191.79,36.79]
[1761409174480,0.71,191.84,191.8,5.82376433]
[1761409174684,22.88,191.82,191.8,5.21376433]
[1761409175092,0.71,191.83,191.8,5.21376433]
[1761409189426,2.69714327,191.84,191.8,5.82376433]
[1761409189812,0.71,191.83,191.8,5.21376433]
[1761409202047,22.88,191.85,191.8,18.24817517]
[1761409202257,0.69,191.84,191.81,0.61]
[1761409202533,0.69,191.84,191.8,18.85817517]
[1761409202836,23.57,191.85,191.81,0.61]
[1761409203928,22.88,191.83,191.82,5.21322072]
[1761409204134,22.88,191.83,191.82,41.37322072]
[1761409204345,22.88,191.83,191.82,41.98322072]
[1761409204837,22.88,191.84,191.82,41.98322072]
[1761409205018,22.88,191.84,191.82,41.37322072]
[1761409205333,23.57,191.84,191.82,41.37322072]
[1761409205523,22.88,191.84,191.82,41.37322072]
[1761409205726,0.69,191.85,191.82,41.37322072]
[1761409206527,1.96258025,191.87,191.82,41.98322072]
[1761409206717,0.69,191.87,191.82,41.98322072]
[1761409206917,0.69,191.87,191.83,0.61]
[1761409207329,0.69,191.87,191.82,41.98322072]
[1761409207734,0.69,191.87,191.82,41.37322072]
[1761409208929,0.69,191.87,191.82,41.98322072]
[1761409211944,0.69,191.87,191.82,41.37322072]
[1761409217251,1.96258025,191.87,191.82,41.37322072]
[1761409217449,0.69,191.87,191.82,41.37322072]
[1761409217627,1.96258025,191.87,191.82,41.37322072]
[1761409217828,0.69,191.86,191.82,41.37322072]
[1761409221453,0.69,191.86,191.82,41.98322072]
[1761409223248,0.72,191.88,191.83,0.61]
[1761409223454,0.2,191.89,191.83,0.61]
[1761409223832,23.08,191.89,191.84,18.2443703]
[1761409224032,23.08,191.89,191.85,36.14]
[1761409224240,23.8,191.89,191.85,36.75]
[1761409224439,0.92,191.89,191.85,36.75]
[1761409224640,0.2,191.89,191.86,0.61]
[1761409226159,0.2,191.89,191.87,5.21186219]
[1761409227351,0.2,191.89,191.88,41.35159057]
[1761409252364,0.2,191.89,191.88,41.96159057]
[1761409258075,0.2,191.89,191.88,44.04715067]
[1761409261984,0.2,191.89,191.88,54.92362588]
[1761409262282,1e-08,191.89,191.88,54.92362588]
[1761409266890,0.70000001,191.89,191.88,18.17362588]
[1761409267073,0.70000001,191.89,191.88,54.27362588]
[1761409267674,1e-08,191.89,191.88,54.27362588]
[1761409273893,0.70000001,191.89,191.88,43.39715067]
[1761409274475,1e-08,191.89,191.88,43.39715067]
[1761409275791,1e-08,191.89,191.88,44.00715067]
[1761409278598,1e-08,191.89,191.88,56.86977175]
[1761409301795,1e-08,191.89,191.88,56.25977175]
[1761409304015,1e-08,191.89,191.88,56.86977175]
[1761409304717,1e-08,191.89,191.88,56.25977175]
[1761409306421,1e-08,191.89,191.88,56.86977175]
[1761409306820,1e-08,191.89,191.88,56.25977175]
[1761409307625,1e-08,191.89,191.88,56.86977175]
[1761409310628,1e-08,191.89,191.88,56.25977175]
[1761409313334,1e-08,191.89,191.88,18.17362588]
[1761409313526,1e-08,191.89,191.88,56.21977175]
[1761409322734,1e-08,191.89,191.88,55.50443656]
[1761409331644,1e-08,191.89,191.88,18.17362588]
[1761409331833,0.72000001,191.89,191.88,54.23362588]
[1761409332031,0.72000001,191.89,191.88,55.50443656]
[1761409334039,1e-08,191.89,191.88,55.50443656]
[1761409337056,0.72000001,191.89,191.88,55.50443656]
[1761409346768,1e-08,191.89,191.88,55.50443656]
[1761409347872,0.69000001,191.89,191.88,55.50443656]
[1761409349053,1e-08,191.89,191.88,55.50443656]
[1761409349670,1e-08,191.89,191.88,56.02559561]
[1761409349870,1e-08,191.89,191.88,56.63559561]
[1761409359986,1e-08,191.9,191.89,10.87647521]
[1761409360172,0.2,191.93,191.89,10.87647521]
[1761409360371,0.2,191.93,191.92,12.14728589]
[1761409360584,0.2,191.93,191.92,56.20504852]
[1761409361384,0.2,191.93,191.92,58.29006506]
[1761409361589,0.2,191.93,191.92,63.50056943]
[1761409362087,0.89,191.93,191.92,63.50056943]
[1761409369090,0.89,191.93,191.92,15.31328354]
[1761409369280,0.89,191.93,191.92,51.35328354]
[1761409373911,0.89,191.93,191.92,2.08501654]
[1761409374096,22.88,191.92,191.86,36.04]
[1761409374404,23.53,191.92,191.86,38.12588637]
[1761409374609,23.53,191.91,191.86,38.12588637]
[1761409374992,0.65,191.9,191.86,38.12588637]
[1761409375311,0.65,191.9,191.87,5.21186219]
[1761409376901,1.92081068,191.9,191.87,5.21186219]
[1761409377506,0.65,191.89,191.87,5.21186219]
[1761409382307,0.65,191.89,191.88,36.04]
[1761409383406,0.65,191.89,191.88,41.25159057]
[1761409387701,2.63722345,191.89,191.88,41.25159057]
[1761409388216,2.63722345,191.89,191.86,41.25213384]
[1761409388416,28.29025713,191.93,191.82,13.03246235]
[1761409388417,1.98722345,191.87,191.82,13.03246235]
[1761409388720,1.98722345,191.87,191.79,18.24912664]
[1761409388919,1.98722345,191.87,191.8,36.04]
[1761409388920,0.67,191.86,191.8,36.04]
[1761409389301,1.98722345,191.85,191.8,36.04]
[1761409389917,0.67,191.84,191.8,36.04]
[1761409391024,0.67,191.84,191.81,5.21349251]
[1761409392095,0.67,191.84,191.81,18.2472238]
[1761409392512,2.65722345,191.84,191.81,5.21349251]
[1761409392920,0.67,191.83,191.81,5.21349251]
[1761409396912,0.67,191.83,191.8,36.04]
[1761409398634,0.67,191.83,191.8,41.25375795]
[1761409411017,22.88,191.82,191.8,36.04]
[1761409411223,22.88,191.81,191.78,49.18080041]
[1761409411732,0.68,191.8,191.78,49.18080041]
[1761409412225,0.68,191.8,191.78,43.96654833]
[1761409415535,0.68,191.82,191.78,49.84072062]
[1761409415746,0.68,191.82,191.8,1.98722345]
[1761409416041,0.68,191.82,191.8,36.04]
[1761409416843,23.56,191.82,191.8,36.04]
[1761409417834,23.56,191.82,191.8,41.25374254]
[1761409420324,23.56,191.84,191.8,41.91374254]
[1761409421063,23.56,191.83,191.8,41.25374254]
[1761409421545,23.56,191.83,191.8,41.91374254]
[1761409422735,23.56,191.83,191.8,43.90096599]
[1761409431157,23.56,191.83,191.81,7.20065592]
[1761409431359,23.56,191.83,191.82,36.04]
[1761409439167,23.56,191.83,191.8,36.04]
[1761409439370,0.71,191.82,191.8,36.04]
[1761409442163,0.71,191.82,191.8,41.25370963]
[1761409442663,0.71,191.82,191.8,43.24093308]
[1761409444664,0.71,191.82,191.8,42.52595827]
[1761409445871,22.88,191.84,191.8,42.52595827]
[1761409445872,22.88,191.83,191.81,1.27224864]
[1761409446046,23.57,191.83,191.81,1.27224864]
[1761409446870,23.57,191.83,191.81,22.13633274]
[1761409447471,23.57,191.83,191.82,1.27224864]
[1761409447967,22.88,191.83,191.82,1.27224864]
[1761409449369,22.88,191.83,191.82,37.31224864]
[1761409450375,22.88,191.83,191.82,42.52546936]
[1761409450560,22.88,191.84,191.82,43.18546936]
[1761409450763,22.88,191.84,191.82,58.83532981]
[1761409450964,22.88,191.84,191.83,1.27224864]
[1761409451469,0.69,191.84,191.8,5.21358466]
[1761409451677,0.69,191.83,191.8,41.25358466]
[1761409451974,0.69,191.83,191.8,56.90589468]
[1761409456674,0.69,191.83,191.8,41.25358466]
[1761409459976,0.69,191.83,191.8,42.5258333]
[1761409467190,0.69,191.83,191.8,41.25358466]
[1761409470195,22.88,191.82,191.79,15.65231002]
[1761409470390,22.88,191.8,191.77,5.21452548]
[1761409470592,22.88,191.8,191.77,41.25452548]
[1761409470776,0.66,191.79,191.77,41.25452548]
[1761409471183,0.66,191.79,191.77,56.90846896]
[1761409471475,0.66,191.79,191.77,52.96619212]
[1761409471676,0.66,191.79,191.77,58.18073167]
[1761409472086,0.66,191.79,191.77,52.96619212]
[1761409475082,0.66,191.79,191.77,58.18072192]
[1761409476202,0.66,191.79,191.77,42.52677844]
[1761409476583,0.66,191.79,191.78,15.65394348]
[1761409477903,23.54,191.79,191.76,1.27224864]
[1761409478108,0.66,191.78,191.76,1.27224864]
[1761409478886,0.66,191.78,191.75,22.14374065]
[1761409479088,0.66,191.78,191.76,1.27224864]
[1761409480707,23.54,191.79,191.76,1.98224864]
[1761409480901,23.54,191.79,191.76,22.85260765]
[1761409481210,22.88,191.79,191.76,22.14260765]
[1761409481386,0.66,191.78,191.76,22.14260765]
[1761409481582,22.88,191.8,191.77,1.27224864]
[1761409481789,22.88,191.8,191.78,1.27224864]
[1761409482089,22.88,191.79,191.78,1.27224864]
[1761409482290,22.88,191.79,191.78,1.98224864]
[1761409482498,22.88,191.8,191.78,1.98224864]
[1761409483095,22.88,191.79,191.78,1.27224864]
[1761409489028,22.88,191.79,191.77,57.6184083]
[1761409489227,22.88,191.79,191.78,1.27224864]
[1761409495322,0.65,191.8,191.77,51.69394348]
[1761409495522,0.65,191.8,191.77,37.31224864]
[1761409495714,0.65,191.8,191.77,38.03224864]
[1761409495909,22.88,191.79,191.78,1.27224864]
[1761409496304,5.21356703,191.81,191.78,1.27224864]
[1761409496507,0.65,191.8,191.77,37.31224864]
[1761409497021,0.65,191.8,191.77,52.96700899]
[1761409498723,0.65,191.8,191.77,37.31224864]
[1761409499712,0.65,191.8,191.77,38.03224864]
[1761409499912,22.88,191.79,191.78,1.99224864]
[1761409500218,22.88,191.79,191.78,1.27224864]
[1761409503216,22.88,191.79,191.78,1.99224864]
[1761409503415,22.88,191.79,191.78,1.27224864]
[1761409503916,14.3024433,191.87,191.78,7.2065567]
[1761409504117,22.88,191.83,191.8,1.27224864]
[1761409504537,0.72,191.82,191.8,1.27224864]
[1761409504743,0.72,191.82,191.8,1.98796785]
[1761409507037,10.87647521,191.88,191.81,2.70796785]
[1761409507217,0.72,191.85,191.82,1.98796785]
[1761409507420,22.88,191.84,191.82,1.98796785]
[1761409507613,22.88,191.84,191.81,1.98796785]
[1761409507818,23.6,191.84,191.81,1.98796785]
[1761409508111,23.6,191.84,191.81,2.70796785]
[1761409508940,28.81283171,191.84,191.81,2.70796785]
[1761409509115,0.72,191.83,191.81,1.98796785]
[1761409509316,28.81283171,191.84,191.81,1.98796785]
[1761409510537,0.72,191.83,191.81,1.98796785]
[1761409511241,0.72,191.83,191.8,1.98796785]
[1761409511619,0.72,191.83,191.79,38.02796785]
[1761409511920,0.72,191.83,191.79,38.74796785]
[1761409513051,0.72,191.83,191.79,38.02796785]
[1761409513841,0.72,191.83,191.79,38.74796785]
[1761409516541,5.93307611,191.83,191.79,38.02796785]
[1761409516741,5.93307611,191.83,191.79,38.74796785]
[1761409516943,0.72,191.82,191.79,38.74796785]
[1761409518518,0.72,191.82,191.79,36.04]
[1761409518724,28.81330442,191.82,191.78,1.98796785]
[1761409519242,0.72,191.81,191.77,38.72796785]
[1761409521746,0.72,191.81,191.78,2.65796785]
[1761409524149,0.72,191.81,191.78,0.67]
[1761409524351,0.72,191.81,191.78,2.65796785]
[1761409527650,0.72,191.81,191.78,1.98796785]
[1761409527874,0.72,191.81,191.78,2.65796785]
[1761409537771,0.72,191.81,191.78,0.67]
[1761409538273,0.72,191.81,191.77,41.23456528]
[1761409538466,0.72,191.81,191.77,41.90456528]
[1761409543363,22.88,191.82,191.78,0.67]
[1761409543562,23.58,191.82,191.78,0.67]
[1761409544171,22.88,191.82,191.78,0.67]
[1761409544572,22.88,191.82,191.78,2.65796785]
[1761409544875,23.58,191.82,191.78,7.87223441]
[1761409545075,22.88,191.8,191.79,0.67]
[1761409553483,21.38,191.8,191.79,0.67]
[1761409553685,21.38,191.8,191.78,5.92426656]
[1761409556669,21.38,191.8,191.78,5.21426656]
[1761409556881,21.38,191.8,191.79,0.71]
[1761409557087,21.38,191.8,191.78,5.92426656]
[1761409558385,21.38,191.8,191.78,0.71]
[1761409559281,21.38,191.8,191.79,15.65231002]
[1761409560579,22.04,191.8,191.79,15.65231002]
[1761409561888,21.38,191.8,191.79,15.65231002]
[1761409565585,21.38,191.8,191.79,16.33231002]
[1761409566784,21.38,191.8,191.79,52.35231002]
[1761409568383,21.38,191.8,191.79,51.67231002]
[1761409578802,0.66,191.81,191.79,51.67231002]
[1761409579107,22.88,191.86,191.8,1.95250231]
[1761409579402,0.66,191.85,191.8,1.95250231]
[1761409579594,0.66,191.85,191.81,0.68]
[1761409580002,22.88,191.82,191.81,0.68]
[1761409580708,22.88,191.82,191.81,16.33067689]
[1761409581191,22.88,191.82,191.81,52.35067689]
[1761409583205,28.81272974,191.84,191.81,52.35067689]
[1761409583710,28.81272974,191.84,191.81,36.7]
[1761409583905,0.72,191.83,191.82,15.65067689]
[1761409584300,0.72,191.83,191.79,36.73]
[1761409584499,0.72,191.83,191.81,15.65149341]
[1761409584702,0.72,191.83,191.75,13.03780936]
[1761409584703,1.27250231,191.82,191.75,15.02031167]
[1761409584911,1.27250231,191.82,191.76,36.02]
[1761409585110,5.93349251,191.81,191.79,15.65394348]